fUSD/lending_fUSD_20260529
["ID","MTS","AMOUNT","RATE_DAILY","PERIOD"]
[423362155,1780067441000,-1000.0,0.00024658,2]
[423362162,1780067441000,-695.65,0.00024886,7]
[423362161,1780067441000,-200.0,0.00024838,2]
[423362164,1780067441000,-500.0,0.00024899,2]
[423362163,1780067441000,-796.7,0.00024894,7]
[423362140,1780067441000,-590.0,0.00024,2]
[423362157,1780067441000,-695.65,0.00024658,2]
[423362139,1780067441000,-152.0,0.00023869,9]
[423362114,1780067441000,-796.7,0.00022,2]
[423362148,1780067441000,-152.0,0.00024259,10]
[423362113,1780067441000,-800.0,0.00022,2]
[423362112,1780067441000,-590.0,0.00022,2]
[423362171,1780067441000,-686.96874582,0.00025,2]
[423362115,1780067441000,-674.0,0.00022,2]
[423362117,1780067441000,-21082.72906717,0.00022122,2]
[423362120,1780067441000,-166.66,0.00022384,2]
[423362119,1780067441000,-3115.9,0.00022353,2]
[423362118,1780067441000,-152.0,0.00022307,5]
[423362121,1780067441000,-200.0,0.00022476,2]
[423362122,1780067441000,-373.18,0.00022505,2]
[423362123,1780067441000,-152.0,0.00022697,6]
[423362124,1780067441000,-500.0,0.00022999,2]
[423362137,1780067441000,-685.81,0.000235,7]
[423362116,1780067441000,-841.0,0.00022,2]
[423362128,1780067441000,-2500.0,0.00023,20]
[423362129,1780067441000,-674.0,0.00023,2]
[423362127,1780067441000,-1000.0,0.00023,3]
[423362126,1780067441000,-800.0,0.00023,2]
[423362134,1780067441000,-200.0,0.00023263,2]
[423362135,1780067441000,-152.0,0.00023478,8]
[423362136,1780067441000,-373.17999999,0.00023483,2]
[423362131,1780067441000,-841.0,0.00023,2]
[423362132,1780067441000,-166.66,0.00023057,2]
[423362130,1780067441000,-2500.0,0.00023,20]
[423362133,1780067441000,-152.0,0.00023088,7]
[423362138,1780067441000,-166.66,0.00023729,2]
[423362125,1780067441000,-590.0,0.00023,2]
[423362168,1780067441000,-685.81,0.000249,7]
[423362165,1780067441000,-500.0,0.00024899,2]
[423362166,1780067441000,-500.0,0.00024899,2]
[423362205,1780067441000,-152.0,0.00025821,14]
[423362206,1780067441000,-546.02,0.00025844,2]
[423362203,1780067441000,-151.0,0.00025798,2]
[423362197,1780067441000,-996.0,0.00025637,2]
[423362202,1780067441000,-151.0,0.00025798,2]
[423362204,1780067441000,-695.65,0.000258,30]
[423362208,1780067441000,-277.0,0.00025844,2]
[423362207,1780067441000,-150.0,0.00025844,2]
[423362218,1780067441000,-151.0,0.00025844,2]
[423362211,1780067441000,-150.753,0.00025844,2]
[423362210,1780067441000,-150.353,0.00025844,2]
[423362215,1780067441000,-247.523,0.00025844,2]
[423362212,1780067441000,-160.825,0.00025844,2]
[423362214,1780067441000,-194.92,0.00025844,2]
[423362209,1780067441000,-150.0,0.00025844,2]
[423362217,1780067441000,-245.485,0.00025844,2]
[423362216,1780067441000,-250.0,0.00025844,2]
[423362219,1780067441000,-695.65,0.00026029,2]
[423362222,1780067441000,-5000.0,0.00026078,2]
[423362220,1780067441000,-5275.76938366,0.00026078,2]
[423362221,1780067441000,-5000.0,0.00026078,2]
[423362224,1780067441000,-5000.0,0.00026078,2]
[423362223,1780067441000,-5000.0,0.00026078,2]
[423362225,1780067441000,-362.556846,0.00026159,2]
[423362167,1780067441000,-609.02,0.00024899,2]
[423362201,1780067441000,-1323.07,0.00025786,2]
[423362200,1780067441000,-380.46,0.00025786,2]
[423362213,1780067441000,-150.305,0.00025844,2]
[423362199,1780067441000,-4030.25,0.00025786,2]
[423362170,1780067441000,-800.0,0.00025,2]
[423362198,1780067441000,-4864.15,0.00025644,2]
[423362172,1780067441000,-392.02,0.00025,2]
[423362173,1780067441000,-392.02,0.00025,2]
[423362174,1780067441000,-392.02,0.00025,2]
[423362175,1780067441000,-392.02,0.00025,2]
[423362182,1780067441000,-853.09335718,0.00025,2]
[423362176,1780067441000,-392.02,0.00025,2]
[423362183,1780067441000,-152.0,0.0002504,12]
[423362180,1780067441000,-392.02,0.00025,2]
[423362179,1780067441000,-392.02,0.00025,2]
[423362177,1780067441000,-392.02,0.00025,2]
[423362181,1780067441000,-392.02,0.00025,2]
[423362178,1780067441000,-392.02,0.00025,2]
[423362194,1780067441000,-222.0,0.00025494,2]
[423362196,1780067441000,-200.0,0.00025625,2]
[423362185,1780067441000,-695.65,0.00025115,30]
[423362192,1780067441000,-152.0,0.00025431,13]
[423362193,1780067441000,-373.18,0.0002544,2]
[423362189,1780067441000,-3774.363,0.00025217,2]
[423362190,1780067441000,-6066.0,0.00025217,2]
[423362191,1780067441000,-695.65,0.00025343,2]
[423362187,1780067441000,-1113.0,0.00025217,2]
[423362186,1780067441000,-532.13050657,0.00025145,2]
[423362195,1780067441000,-695.65,0.00025572,7]
[423362184,1780067441000,-996.0,0.00025082,2]
[423362188,1780067441000,-1021.0,0.00025217,2]
[423362263,1780067442000,-745.62,0.00027397,15]
[423362268,1780067442000,-38547.46,0.00027397,10]
[423362265,1780067442000,-300.0,0.00027397,2]
[423362267,1780067442000,-46256.95,0.00027397,10]
[423362260,1780067442000,-373.17999999,0.00027397,2]
[423362264,1780067442000,-1500.0,0.00027397,2]
[423362262,1780067442000,-311.00099132,0.00027397,2]
[423362261,1780067442000,-331.71999999,0.00027397,30]
[423362257,1780067442000,-996.0,0.00027301,4]
[423362258,1780067442000,-152.0,0.00027383,18]
[423362269,1780067442000,-32122.88,0.00027397,10]
[423362259,1780067442000,-500.0,0.00027396,2]
[423362266,1780067442000,-1000.0,0.00027397,20]
[423362281,1780067442000,-796.7,0.00027788,7]
[423362270,1780067442000,-2881.73,0.000274,7]
[423362272,1780067442000,-1782.0,0.000274,30]
[423362273,1780067442000,-379.08,0.000274,2]
[423362276,1780067442000,-379.08,0.000274,2]
[423362275,1780067442000,-379.08,0.000274,2]
[423362274,1780067442000,-379.08,0.000274,2]
[423362277,1780067442000,-379.08,0.000274,2]
[423362279,1780067442000,-150.0,0.00027521,2]
[423362290,1780067442000,-150.0,0.00028016,2]
[423362289,1780067442000,-150.0,0.00028016,2]
[423362280,1780067442000,-152.0,0.00027774,19]
[423362255,1780067442000,-5981.2913539,0.00027293,2]
[423362271,1780067442000,-50339.39,0.000274,14]
[423362253,1780067442000,-152.0,0.00026993,17]
[423362229,1780067442000,-150.0,0.00026253,2]
[423362254,1780067442000,-200.0,0.000272,2]
[423362278,1780067442000,-521.46,0.00027518,7]
[423362226,1780067442000,-996.0,0.00026192,3]
[423362227,1780067442000,-152.0,0.00026212,15]
[423362231,1780067442000,-695.65,0.00026257,7]
[423362230,1780067442000,-219.0,0.00026253,2]
[423362233,1780067442000,-200.0,0.00026272,2]
[423362241,1780067442000,-685.81,0.000265,7]
[423362232,1780067442000,-1000.0,0.00026272,15]
[423362237,1780067442000,-373.17999999,0.00026419,2]
[423362239,1780067442000,-21082.72906717,0.00026433,2]
[423362234,1780067442000,-3115.9,0.00026296,2]
[423362240,1780067442000,-695.65,0.00026486,30]
[423362256,1780067442000,-214.83591502,0.000273,30]
[423362236,1780067442000,-200.0,0.00026412,2]
[423362238,1780067442000,-500.0,0.00026432,2]
[423362242,1780067442000,-152.0,0.00026602,16]
[423362245,1780067442000,-609.02,0.0002671,2]
[423362247,1780067442000,-8597.7130584,0.00026711,2]
[423362246,1780067442000,-133025.5424881,0.00026711,2]
[423362244,1780067442000,-500.0,0.0002671,2]
[423362250,1780067442000,-996.0,0.00026746,3]
[423362249,1780067442000,-1542.0,0.00026716,3]
[423362252,1780067442000,-700.0,0.000269,9]
[423362248,1780067442000,-695.65,0.00026714,2]
[423362251,1780067442000,-223.666255,0.00026864,2]
[423362243,1780067442000,-1124.09990662,0.00026611,2]
[423362235,1780067442000,-2000.0,0.000264,2]
[423362288,1780067442000,-150.0,0.00028016,2]
[423362228,1780067442000,-280.0,0.00026253,2]
[423362282,1780067442000,-996.0,0.00027856,4]
[423362318,1780067442000,-550.0,0.00028193,120]
[423362317,1780067442000,-429.0,0.00028177,2]
[423362319,1780067442000,-550.0,0.00028193,120]
[423362324,1780067442000,-350.0,0.00028193,120]
[423362325,1780067442000,-350.0,0.00028193,120]
[423362323,1780067442000,-200.0,0.00028193,120]
[423362326,1780067442000,-307.0,0.00028193,120]
[423362320,1780067442000,-433.0,0.00028193,120]
[423362321,1780067442000,-150.0,0.00028193,120]
[423362327,1780067442000,-546.02,0.00028193,2]
[423362328,1780067442000,-150.0,0.00028215,2]
[423362329,1780067442000,-1113.0,0.00028217,2]
[423362330,1780067442000,-1021.0,0.00028217,2]
[423362337,1780067442000,-168.61753228,0.00028334,7]
[423362336,1780067442000,-300.77112919,0.00028334,7]
[423362335,1780067442000,-50339.39,0.000283,14]
[423362333,1780067442000,-210.522164,0.00028218,2]
[423362331,1780067442000,-3638.0,0.00028217,2]
[423362338,1780067442000,-163.93109197,0.00028334,7]
[423362332,1780067442000,-6066.0,0.00028217,2]
[423362334,1780067442000,-3115.9,0.00028267,2]
[423362339,1780067442000,-312.48221718,0.00028334,7]
[423362341,1780067442000,-168.59359607,0.00028334,7]
[423362342,1780067442000,-197.831324,0.00028334,7]
[423362344,1780067442000,-355.6741125,0.00028334,7]
[423362340,1780067442000,-200.88526058,0.00028334,7]
[423362287,1780067442000,-200.0,0.00028,7]
[423362322,1780067442000,-292.0,0.00028193,120]
[423362316,1780067442000,-450.0,0.00028177,2]
[423362343,1780067442000,-169.43340761,0.00028334,7]
[423362311,1780067442000,-450.0,0.00028177,2]
[423362315,1780067442000,-450.0,0.00028177,2]
[423362286,1780067442000,-22142.45254127,0.00028,5]
[423362283,1780067442000,-2881.73,0.000279,7]
[423362285,1780067442000,-200.0,0.00027987,2]
[423362298,1780067442000,-356.73298615,0.00028082,2]
[423362296,1780067442000,-213.0,0.00028082,2]
[423362293,1780067442000,-150.0,0.00028068,30]
[423362299,1780067442000,-2500.0,0.00028082,120]
[423362302,1780067442000,-2500.0,0.00028082,120]
[423362294,1780067442000,-163.0,0.00028068,30]
[423362291,1780067442000,-150.0,0.00028016,2]
[423362301,1780067442000,-1000.0,0.00028082,120]
[423362297,1780067442000,-302.46,0.00028082,2]
[423362284,1780067442000,-50339.39,0.000279,14]
[423362292,1780067442000,-200.0,0.00028016,2]
[423362308,1780067442000,-152.0,0.00028164,20]
[423362313,1780067442000,-450.0,0.00028177,2]
[423362310,1780067442000,-450.0,0.00028177,2]
[423362312,1780067442000,-450.0,0.00028177,2]
[423362295,1780067442000,-150.0,0.00028082,2]
[423362307,1780067442000,-685.81,0.000281,7]
[423362309,1780067442000,-450.0,0.00028177,2]
[423362314,1780067442000,-450.0,0.00028177,2]
[423362305,1780067442000,-400.0,0.00028082,3]
[423362303,1780067442000,-1000.0,0.00028082,3]
[423362304,1780067442000,-600.0,0.00028082,3]
[423362300,1780067442000,-1000.0,0.00028082,3]
[423362306,1780067442000,-2500.0,0.00028082,120]
[423362383,1780067443000,-50339.39,0.000287,14]
[423362376,1780067443000,-996.0,0.00028411,5]
[423362380,1780067443000,-199.40326974,0.00028588,2]
[423362384,1780067443000,-151.0,0.000287,7]
[423362374,1780067443000,-150.49798279,0.00028339,7]
[423362382,1780067443000,-167.8894934,0.00028619,7]
[423362386,1780067443000,-600.0,0.00028718,2]
[423362378,1780067443000,-168.84991929,0.00028549,2]
[423362387,1780067443000,-600.0,0.00028718,2]
[423362377,1780067443000,-165.81980513,0.00028547,7]
[423362385,1780067443000,-600.0,0.00028718,2]
[423362379,1780067443000,-152.0,0.00028555,21]
[423362393,1780067443000,-600.0,0.00028718,2]
[423362388,1780067443000,-600.0,0.00028718,2]
[423362392,1780067443000,-600.0,0.00028718,2]
[423362389,1780067443000,-600.0,0.00028718,2]
[423362390,1780067443000,-600.0,0.00028718,2]
[423362394,1780067443000,-319.0,0.00028718,2]
[423362391,1780067443000,-600.0,0.00028718,2]
[423362399,1780067443000,-151.0,0.00028836,2]
[423362396,1780067443000,-500.0,0.00028767,2]
[423362397,1780067443000,-216.36883392,0.00028767,2]
[423362395,1780067443000,-331.71999999,0.00028767,30]
[423362398,1780067443000,-200.0,0.00028774,2]
[423362372,1780067443000,-190.33090994,0.00028339,7]
[423362400,1780067443000,-156.587,0.00028836,2]
[423362381,1780067443000,-21082.72906717,0.00028589,2]
[423362373,1780067443000,-152.74726053,0.00028339,7]
[423362355,1780067443000,-176.83064221,0.00028339,7]
[423362375,1780067443000,-2881.73,0.000284,7]
[423362402,1780067443000,-500.0,0.00028844,120]
[423362349,1780067443000,-276.15918977,0.00028334,7]
[423362350,1780067443000,-166.25026223,0.00028334,7]
[423362346,1780067443000,-204.16670457,0.00028334,7]
[423362348,1780067443000,-196.59722041,0.00028334,7]
[423362347,1780067443000,-170.45359472,0.00028334,7]
[423362345,1780067443000,-157.08448442,0.00028334,7]
[423362352,1780067443000,-168.50294931,0.00028339,7]
[423362353,1780067443000,-169.410686,0.00028339,7]
[423362351,1780067443000,-172.18046261,0.00028334,7]
[423362362,1780067443000,-191.11977874,0.00028339,7]
[423362354,1780067443000,-164.27217445,0.00028339,7]
[423362364,1780067443000,-205.89387837,0.00028339,7]
[423362360,1780067443000,-153.44131016,0.00028339,7]
[423362356,1780067443000,-199.70068572,0.00028339,7]
[423362359,1780067443000,-158.81553262,0.00028339,7]
[423362358,1780067443000,-153.02264896,0.00028339,7]
[423362361,1780067443000,-206.79353255,0.00028339,5]
[423362363,1780067443000,-158.62281654,0.00028339,7]
[423362365,1780067443000,-192.52922732,0.00028339,7]
[423362367,1780067443000,-190.63823032,0.00028339,7]
[423362366,1780067443000,-208.83692504,0.00028339,7]
[423362368,1780067443000,-165.02368299,0.00028339,7]
[423362370,1780067443000,-197.14485582,0.00028339,7]
[423362369,1780067443000,-170.4118041,0.00028339,7]
[423362371,1780067443000,-202.25494561,0.00028339,7]
[423362357,1780067443000,-187.75190103,0.00028339,7]
[423362403,1780067443000,-609.02,0.00028844,120]
[423362404,1780067443000,-500.0,0.00028844,120]
[423362405,1780067443000,-500.0,0.00028844,120]
[423362437,1780067443000,-605.3,0.00029,2]
[423362446,1780067443000,-2500.0,0.00029,2]
[423362443,1780067443000,-5369.72995458,0.00029,2]
[423362445,1780067443000,-273.3521427,0.00029,2]
[423362439,1780067443000,-157.7,0.00029,2]
[423362442,1780067443000,-1915.0,0.00029,2]
[423362444,1780067443000,-1000.0,0.00029,2]
[423362438,1780067443000,-605.3,0.00029,2]
[423362436,1780067443000,-605.32,0.00029,2]
[423362441,1780067443000,-929.99999999,0.00029,2]
[423362440,1780067443000,-157.69,0.00029,2]
[423362448,1780067443000,-1000.0,0.00029,2]
[423362435,1780067443000,-605.3,0.00029,2]
[423362447,1780067443000,-10000.0,0.00029,2]
[423362451,1780067443000,-391.22,0.00029,9]
[423362450,1780067443000,-391.22,0.00029,8]
[423362457,1780067443000,-200.0,0.00029,2]
[423362449,1780067443000,-391.22,0.00029,8]
[423362454,1780067443000,-1000.0,0.00029,2]
[423362456,1780067443000,-1000.0,0.00029,2]
[423362452,1780067443000,-743.86583086,0.00029,2]
[423362453,1780067443000,-2382.26336414,0.00029,2]
[423362458,1780067443000,-200.0,0.00029,2]
[423362460,1780067443000,-200.0,0.00029,2]
[423362461,1780067443000,-1061.63,0.00029,2]
[423362459,1780067443000,-1000.0,0.00029,2]
[423362455,1780067443000,-2500.0,0.00029,2]
[423362431,1780067443000,-200.0,0.00029,2]
[423362462,1780067443000,-1000.0,0.00029,2]
[423362434,1780067443000,-296.97,0.00029,2]
[423362410,1780067443000,-150.0,0.00028855,2]
[423362407,1780067443000,-150.0,0.00028844,2]
[423362401,1780067443000,-199.37384035,0.00028836,2]
[423362406,1780067443000,-429.0,0.00028844,120]
[423362409,1780067443000,-150.0,0.00028855,2]
[423362408,1780067443000,-150.0,0.00028844,2]
[423362412,1780067443000,-150.0,0.00028855,2]
[423362432,1780067443000,-200.0,0.00029,2]
[423362411,1780067443000,-150.0,0.00028855,2]
[423362421,1780067443000,-200.0,0.00029,2]
[423362419,1780067443000,-188.44606373,0.00028971,2]
[423362422,1780067443000,-200.0,0.00029,2]
[423362414,1780067443000,-150.0,0.00028897,2]
[423362420,1780067443000,-157.7,0.00029,2]
[423362415,1780067443000,-2881.73,0.000289,7]
[423362417,1780067443000,-996.0,0.00028965,6]
[423362430,1780067443000,-200.0,0.00029,2]
[423362429,1780067443000,-200.0,0.00029,2]
[423362426,1780067443000,-200.0,0.00029,2]
[423362427,1780067443000,-200.0,0.00029,2]
[423362428,1780067443000,-200.0,0.00029,2]
[423362433,1780067443000,-200.0,0.00029,2]
[423362424,1780067443000,-200.0,0.00029,2]
[423362423,1780067443000,-200.0,0.00029,2]
[423362416,1780067443000,-152.0,0.00028945,22]
[423362418,1780067443000,-167.00015065,0.00028971,2]
[423362413,1780067443000,-150.0,0.00028855,2]
[423362425,1780067443000,-200.0,0.00029,2]
[423362503,1780067444000,-1917.21,0.00029386,30]
[423362497,1780067444000,-310.43374218,0.000292,2]
[423362496,1780067444000,-50339.39,0.000291,14]
[423362506,1780067444000,-1917.21,0.00029386,30]
[423362498,1780067444000,-685.81,0.000293,7]
[423362500,1780067444000,-1917.21,0.00029386,30]
[423362502,1780067444000,-1917.21,0.00029386,2]
[423362495,1780067444000,-200.0,0.000291,2]
[423362499,1780067444000,-152.0,0.00029336,23]
[423362491,1780067444000,-150.30096206,0.00029028,120]
[423362505,1780067444000,-1917.21,0.00029386,2]
[423362504,1780067444000,-1917.21,0.00029386,7]
[423362531,1780067444000,-643.39,0.00029615,30]
[423362508,1780067444000,-1917.21,0.00029386,2]
[423362515,1780067444000,-2216.39,0.00029408,7]
[423362509,1780067444000,-1917.23,0.00029386,30]
[423362507,1780067444000,-1917.21,0.00029386,7]
[423362510,1780067444000,-2881.73,0.000294,7]
[423362517,1780067444000,-2216.39,0.00029408,30]
[423362518,1780067444000,-2216.39,0.00029408,7]
[423362511,1780067444000,-2216.39,0.00029408,30]
[423362512,1780067444000,-2216.39,0.00029408,7]
[423362516,1780067444000,-2216.39,0.00029408,2]
[423362514,1780067444000,-2216.39,0.00029408,30]
[423362519,1780067444000,-2216.39,0.00029408,2]
[423362492,1780067444000,-200.04,0.000291,2]
[423362501,1780067444000,-1917.21,0.00029386,7]
[423362490,1780067444000,-1000.0,0.00029011,2]
[423362480,1780067444000,-500.0,0.00029011,2]
[423362488,1780067444000,-1000.0,0.00029011,2]
[423362530,1780067444000,-643.39,0.00029615,2]
[423362464,1780067444000,-10000.0,0.00029,2]
[423362466,1780067444000,-2500.0,0.00029,2]
[423362463,1780067444000,-11591.88,0.00029,2]
[423362469,1780067444000,-500.0,0.00029011,2]
[423362470,1780067444000,-500.0,0.00029011,2]
[423362468,1780067444000,-316.92418714,0.00029,2]
[423362465,1780067444000,-1000.0,0.00029,2]
[423362467,1780067444000,-193.88359574,0.00029,2]
[423362472,1780067444000,-500.0,0.00029011,2]
[423362479,1780067444000,-500.0,0.00029011,2]
[423362471,1780067444000,-500.0,0.00029011,2]
[423362473,1780067444000,-500.0,0.00029011,2]
[423362481,1780067444000,-500.0,0.00029011,2]
[423362482,1780067444000,-500.0,0.00029011,2]
[423362474,1780067444000,-500.0,0.00029011,2]
[423362476,1780067444000,-500.0,0.00029011,2]
[423362475,1780067444000,-500.0,0.00029011,2]
[423362478,1780067444000,-500.0,0.00029011,2]
[423362477,1780067444000,-500.0,0.00029011,2]
[423362494,1780067444000,-200.0,0.000291,2]
[423362484,1780067444000,-500.0,0.00029011,2]
[423362489,1780067444000,-1000.0,0.00029011,2]
[423362486,1780067444000,-1000.0,0.00029011,2]
[423362487,1780067444000,-1000.0,0.00029011,2]
[423362483,1780067444000,-500.0,0.00029011,2]
[423362485,1780067444000,-1000.0,0.00029011,2]
[423362493,1780067444000,-402.83,0.000291,2]
[423362520,1780067444000,-2216.45,0.00029408,30]
[423362513,1780067444000,-2216.39,0.00029408,2]
[423362525,1780067444000,-519.86173356,0.000295,37]
[423362556,1780067444000,-395.66264799,0.00029663,7]
[423362559,1780067444000,-408.33340915,0.00029663,7]
[423362567,1780067444000,-338.82137199,0.00029667,7]
[423362558,1780067444000,-162.39348619,0.00029663,7]
[423362560,1780067444000,-314.16896883,0.00029663,7]
[423362557,1780067444000,-338.86681523,0.00029663,7]
[423362563,1780067444000,-684.72198984,0.00029663,7]
[423362568,1780067444000,-195.09795569,0.00029667,7]
[423362561,1780067444000,-340.90718944,0.00029663,7]
[423362565,1780067444000,-337.00589862,0.00029667,7]
[423362562,1780067444000,-151.12671918,0.00029663,7]
[423362564,1780067444000,-743.80517822,0.00029663,7]
[423362569,1780067444000,-200.21566514,0.00029667,7]
[423362571,1780067444000,-353.66128442,0.00029667,7]
[423362572,1780067444000,-399.40137145,0.00029667,7]
[423362573,1780067444000,-375.50380206,0.00029667,7]
[423362570,1780067444000,-328.54434891,0.00029667,7]
[423362576,1780067444000,-168.69000495,0.00029667,7]
[423362574,1780067444000,-317.63106525,0.00029667,7]
[423362578,1780067444000,-413.5870651,0.00029667,5]
[423362575,1780067444000,-306.88262031,0.00029667,7]
[423362577,1780067444000,-576.83708468,0.00029667,7]
[423362579,1780067444000,-382.23955748,0.00029667,7]
[423362580,1780067444000,-358.91680101,0.00029667,7]
[423362583,1780067444000,-231.85378954,0.00029667,7]
[423362582,1780067444000,-411.78775674,0.00029667,7]
[423362522,1780067444000,-1027.8,0.00029431,30]
[423362552,1780067444000,-401.77052116,0.00029663,7]
[423362553,1780067444000,-193.07599903,0.00029663,7]
[423362566,1780067444000,-176.47010589,0.00029667,7]
[423362550,1780067444000,-337.23506455,0.00029663,7]
[423362549,1780067444000,-601.54225839,0.00029663,7]
[423362526,1780067444000,-50339.39,0.000295,14]
[423362523,1780067444000,-500.0,0.00029498,2]
[423362581,1780067444000,-317.24563307,0.00029667,7]
[423362524,1780067444000,-519.86173356,0.000295,37]
[423362527,1780067444000,-996.0,0.0002952,6]
[423362528,1780067444000,-643.39,0.00029615,30]
[423362529,1780067444000,-643.39,0.00029615,7]
[423362532,1780067444000,-643.39,0.00029615,7]
[423362533,1780067444000,-643.39,0.00029615,2]
[423362540,1780067444000,-9905.19,0.0002964,7]
[423362534,1780067444000,-643.39,0.00029615,30]
[423362539,1780067444000,-9905.19,0.0002964,30]
[423362541,1780067444000,-9905.19,0.0002964,2]
[423362521,1780067444000,-1027.8,0.00029431,2]
[423362538,1780067444000,-188.44606373,0.00029623,2]
[423362537,1780067444000,-643.41,0.00029615,30]
[423362551,1780067444000,-327.86218393,0.00029663,7]
[423362547,1780067444000,-9905.19,0.0002964,2]
[423362544,1780067444000,-9905.19,0.0002964,2]
[423362548,1780067444000,-9905.19,0.0002964,30]
[423362546,1780067444000,-9905.19,0.0002964,7]
[423362554,1780067444000,-165.09047118,0.00029663,7]
[423362545,1780067444000,-9905.19,0.0002964,30]
[423362535,1780067444000,-643.39,0.00029615,7]
[423362543,1780067444000,-9905.19,0.0002964,7]
[423362536,1780067444000,-643.39,0.00029615,2]
[423362542,1780067444000,-9905.19,0.0002964,30]
[423362555,1780067444000,-337.18719215,0.00029663,7]
[423362626,1780067445000,-463.76,0.00029838,2]
[423362628,1780067445000,-463.76,0.00029838,30]
[423362623,1780067445000,-463.76,0.00029838,2]
[423362616,1780067445000,-1790.31,0.00029828,30]
[423362627,1780067445000,-463.76,0.00029838,7]
[423362622,1780067445000,-1790.4,0.00029828,30]
[423362620,1780067445000,-1790.31,0.00029828,7]
[423362629,1780067445000,-463.76,0.00029838,2]
[423362618,1780067445000,-1790.31,0.00029828,2]
[423362619,1780067445000,-1790.31,0.00029828,30]
[423362625,1780067445000,-463.76,0.00029838,30]
[423362621,1780067445000,-1790.31,0.00029828,2]
[423362624,1780067445000,-463.76,0.00029838,7]
[423362636,1780067445000,-463.76,0.00029838,7]
[423362635,1780067445000,-463.76,0.00029838,2]
[423362638,1780067445000,-463.76,0.00029838,2]
[423362637,1780067445000,-463.76,0.00029838,30]
[423362632,1780067445000,-463.76,0.00029838,2]
[423362631,1780067445000,-463.76,0.00029838,30]
[423362641,1780067445000,-463.76,0.00029838,2]
[423362633,1780067445000,-463.76,0.00029838,7]
[423362639,1780067445000,-463.76,0.00029838,7]
[423362634,1780067445000,-463.76,0.00029838,30]
[423362640,1780067445000,-463.76,0.00029838,30]
[423362643,1780067445000,-2094.47,0.00029855,7]
[423362644,1780067445000,-2094.47,0.00029855,2]
[423362612,1780067445000,-7433.4,0.00029801,30]
[423362630,1780067445000,-463.76,0.00029838,7]
[423362615,1780067445000,-1790.31,0.00029828,2]
[423362591,1780067445000,-330.04736597,0.00029667,7]
[423362617,1780067445000,-1790.31,0.00029828,7]
[423362587,1780067445000,-174.11467666,0.00029667,7]
[423362585,1780067445000,-385.05845463,0.00029667,7]
[423362592,1780067445000,-340.8236082,0.00029667,7]
[423362588,1780067445000,-417.67385008,0.00029667,7]
[423362590,1780067445000,-381.27646064,0.00029667,7]
[423362584,1780067445000,-180.66670105,0.00029667,5]
[423362586,1780067445000,-152.55379499,0.00029667,7]
[423362589,1780067445000,-242.27716993,0.00029667,7]
[423362594,1780067445000,-380.66181989,0.00029667,7]
[423362601,1780067445000,-841.0,0.00029681,30]
[423362604,1780067445000,-7433.39,0.00029801,7]
[423362603,1780067445000,-7433.39,0.00029801,30]
[423362593,1780067445000,-404.50989122,0.00029667,7]
[423362614,1780067445000,-1790.31,0.00029828,7]
[423362602,1780067445000,-152.0,0.00029726,24]